[Event "Titled Tuesday Blitz August 15 Late 2023"]
[White "Golubev, Mikhail"]
[Black "Tsyhanchuk, Stanislav"]
[WhiteFideId "14100983"]
[BlackFideId "13505130"]
[WhiteElo "2551"]
[BlackElo "2456"]
[Result "0-1"]
[Round "9"]
[TimeControl "180+1"]
[Date "2023.08.15"]
[WhiteClock "0:00:00"]
[BlackClock "0:00:16"]
[Board "61"]

1. e4 {[%clk 0:03:00]}  c5 {[%clk 0:02:59]} 2. Nf3 {[%clk 0:03:00]}  d6 {[%clk 0:02:59]} 3. d4 {[%clk 0:03:00]}  cxd4 {[%clk 0:03:00]} 4. Nxd4 {[%clk 0:03:01]}  Nf6 {[%clk 0:03:00]} 5. Nc3 {[%clk 0:03:01]}  a6 {[%clk 0:03:01]} 6. Bc4 {[%clk 0:03:01]}  e6 {[%clk 0:03:00]} 7. Bb3 {[%clk 0:03:01]}  Nbd7 {[%clk 0:02:59]} 8. f4 {[%clk 0:02:58]}  Nc5 {[%clk 0:02:59]} 9. Qf3 {[%clk 0:02:58]}  Be7 {[%clk 0:02:56]} 10. Be3 {[%clk 0:02:54]}  O-O {[%clk 0:02:54]} 11. O-O {[%clk 0:02:52]}  Bd7 {[%clk 0:02:52]} 12. e5 {[%clk 0:02:41]}  dxe5 {[%clk 0:02:46]} 13. fxe5 {[%clk 0:02:39]}  Ne8 {[%clk 0:02:43]} 14. Rad1 {[%clk 0:02:24]}  Nxb3 {[%clk 0:02:40]} 15. axb3 {[%clk 0:02:22]}  Qc7 {[%clk 0:02:36]} 16. Bf4 {[%clk 0:02:14]}  Rc8 {[%clk 0:02:24]} 17. Kh1 {[%clk 0:02:14]}  b5 {[%clk 0:02:24]} 18. Nf5 {[%clk 0:02:05]}  exf5 {[%clk 0:02:18]} 19. e6 {[%clk 0:01:29]}  Bc6 {[%clk 0:02:14]} 20. Nd5 {[%clk 0:00:27]}  Bxd5 {[%clk 0:02:12]} 21. Qxd5 {[%clk 0:00:26]}  Qxc2 {[%clk 0:01:21]} 22. Qd7 {[%clk 0:00:00]}  Rd8 {[%clk 0:00:16]} 0-1


[Site "https://www.chess.com"]

[Event "Titled Tuesday Blitz August 15 Late 2023"]
[White "Musovic, Armin"]
[Black "Vafin, Ayrat"]
[WhiteFideId "939935"]
[BlackFideId "4146530"]
[WhiteElo "2538"]
[BlackElo "2441"]
[Result "1-0"]
[Round "9"]
[TimeControl "180+1"]
[Date "2023.08.15"]
[WhiteClock "0:00:07"]
[BlackClock "0:00:05"]
[Board "64"]

1. a3 {[%clk 0:03:00]}  d5 {[%clk 0:02:57]} 2. Nc3 {[%clk 0:03:01]}  d4 {[%clk 0:02:57]} 3. Ne4 {[%clk 0:03:01]}  Nf6 {[%clk 0:02:57]} 4. d3 {[%clk 0:03:01]}  Nxe4 {[%clk 0:02:54]} 5. dxe4 {[%clk 0:03:02]}  e5 {[%clk 0:02:55]} 6. Nf3 {[%clk 0:03:03]}  Nc6 {[%clk 0:02:53]} 7. e3 {[%clk 0:03:03]}  Bg4 {[%clk 0:02:51]} 8. Bb5 {[%clk 0:03:01]}  dxe3 {[%clk 0:02:43]} 9. Bxc6+ {[%clk 0:02:56]}  bxc6 {[%clk 0:02:41]} 10. Qxd8+ {[%clk 0:02:55]}  Rxd8 {[%clk 0:02:42]} 11. Bxe3 {[%clk 0:02:56]}  Bxf3 {[%clk 0:02:36]} 12. gxf3 {[%clk 0:02:57]}  a6 {[%clk 0:02:33]} 13. Rd1 {[%clk 0:02:49]}  Rxd1+ {[%clk 0:02:32]} 14. Kxd1 {[%clk 0:02:50]}  Bd6 {[%clk 0:02:26]} 15. c4 {[%clk 0:02:48]}  Kd7 {[%clk 0:02:23]} 16. Kc2 {[%clk 0:02:47]}  Ke6 {[%clk 0:02:17]} 17. Kc3 {[%clk 0:02:35]}  f5 {[%clk 0:02:12]} 18. c5 {[%clk 0:02:24]}  Be7 {[%clk 0:02:11]} 19. Kc4 {[%clk 0:02:25]}  f4 {[%clk 0:02:04]} 20. Bd2 {[%clk 0:02:25]}  Rd8 {[%clk 0:01:57]} 21. Bc3 {[%clk 0:02:25]}  Bh4 {[%clk 0:01:57]} 22. Rf1 {[%clk 0:02:12]}  g6 {[%clk 0:01:57]} 23. b4 {[%clk 0:02:09]}  g5 {[%clk 0:01:28]} 24. a4 {[%clk 0:02:05]}  h5 {[%clk 0:01:29]} 25. h3 {[%clk 0:02:00]}  Rd7 {[%clk 0:01:24]} 26. Rg1 {[%clk 0:01:50]}  Rg7 {[%clk 0:01:19]} 27. Rg2 {[%clk 0:01:31]}  Rd7 {[%clk 0:01:18]} 28. Rg1 {[%clk 0:01:18]}  Kf6 {[%clk 0:01:18]} 29. b5 {[%clk 0:01:16]}  axb5+ {[%clk 0:01:09]} 30. axb5 {[%clk 0:01:17]}  cxb5+ {[%clk 0:01:08]} 31. Kxb5 {[%clk 0:01:18]}  Rd3 {[%clk 0:00:57]} 32. Ba5 {[%clk 0:01:14]}  Bxf2 {[%clk 0:00:47]} 33. Rf1 {[%clk 0:01:00]}  Rxf3 {[%clk 0:00:43]} 34. Bxc7 {[%clk 0:01:00]}  Rb3+ {[%clk 0:00:42]} 35. Kc4 {[%clk 0:00:58]}  Rb2 {[%clk 0:00:40]} 36. Bd6 {[%clk 0:00:48]}  g4 {[%clk 0:00:37]} 37. hxg4 {[%clk 0:00:49]}  hxg4 {[%clk 0:00:38]} 38. Rd1 {[%clk 0:00:21]}  g3 {[%clk 0:00:33]} 39. Kd5 {[%clk 0:00:22]}  Bd4 {[%clk 0:00:22]} 40. c6 {[%clk 0:00:16]}  g2 {[%clk 0:00:17]} 41. c7 {[%clk 0:00:16]}  Rc2 {[%clk 0:00:17]} 42. Rd2 {[%clk 0:00:07]}  Rxc7 {[%clk 0:00:07]} 43. Rxg2 {[%clk 0:00:05]}  Rd7 {[%clk 0:00:07]} 44. Rg8 {[%clk 0:00:01]}  f3 {[%clk 0:00:06]} 45. Rf8+ {[%clk 0:00:01]}  Kg7 {[%clk 0:00:05]} 46. Rxf3 {[%clk 0:00:02]}  Kg6 {[%clk 0:00:05]} 47. Ke6 {[%clk 0:00:02]}  Ra7 {[%clk 0:00:04]} 48. Rg3+ {[%clk 0:00:03]}  Kh6 {[%clk 0:00:04]} 49. Kf6 {[%clk 0:00:02]}  Kh5 {[%clk 0:00:05]} 50. Kf5 {[%clk 0:00:02]}  Kh4 {[%clk 0:00:05]} 51. Rg4+ {[%clk 0:00:02]}  Kh3 {[%clk 0:00:05]} 52. Rg6 {[%clk 0:00:03]}  Ra5 {[%clk 0:00:05]} 53. Be7 {[%clk 0:00:03]}  Bc3 {[%clk 0:00:04]} 54. Bf6 {[%clk 0:00:03]}  Bd4 {[%clk 0:00:04]} 55. Rg8 {[%clk 0:00:03]}  Ra2 {[%clk 0:00:05]} 56. Rd8 {[%clk 0:00:03]}  Rf2+ {[%clk 0:00:05]} 57. Ke6 {[%clk 0:00:04]}  Ra2 {[%clk 0:00:04]} 58. Bxe5 {[%clk 0:00:04]}  Ra6+ {[%clk 0:00:05]} 59. Kf5 {[%clk 0:00:04]}  Bxe5 {[%clk 0:00:05]} 60. Kxe5 {[%clk 0:00:05]}  Kg4 {[%clk 0:00:06]} 61. Rf8 {[%clk 0:00:05]}  Ra5+ {[%clk 0:00:06]} 62. Ke6 {[%clk 0:00:05]}  Ra8 {[%clk 0:00:06]} 63. Rxa8 {[%clk 0:00:05]}  Kf4 {[%clk 0:00:07]} 64. Ra4 {[%clk 0:00:06]}  Ke3 {[%clk 0:00:05]} 65. Kd6 {[%clk 0:00:07]} 1-0


[Site "https://www.chess.com"]

[Event "Titled Tuesday Blitz August 15 Late 2023"]
[White "Mazurkiewicz, Michal"]
[Black "Sreyas Payyappat"]
[WhiteFideId "1124943"]
[BlackFideId "46674969"]
[WhiteElo "2434"]
[BlackElo "2537"]
[Result "0-1"]
[Round "9"]
[TimeControl "180+1"]
[Date "2023.08.15"]
[WhiteClock "0:00:04"]
[BlackClock "0:00:45"]
[Board "65"]

1. e4 {[%clk 0:02:59]}  c6 {[%clk 0:02:59]} 2. d3 {[%clk 0:02:59]}  d5 {[%clk 0:03:00]} 3. Nd2 {[%clk 0:03:00]}  e5 {[%clk 0:02:58]} 4. Ngf3 {[%clk 0:03:00]}  Bd6 {[%clk 0:02:58]} 5. d4 {[%clk 0:03:00]}  exd4 {[%clk 0:02:56]} 6. exd5 {[%clk 0:03:00]}  c5 {[%clk 0:02:54]} 7. Bb5+ {[%clk 0:02:55]}  Bd7 {[%clk 0:02:51]} 8. Qe2+ {[%clk 0:02:55]}  Ne7 {[%clk 0:02:51]} 9. Ne4 {[%clk 0:02:19]}  Qb6 {[%clk 0:02:16]} 10. Nxd6+ {[%clk 0:01:10]}  Qxd6 {[%clk 0:02:17]} 11. b4 {[%clk 0:01:11]}  O-O {[%clk 0:02:08]} 12. O-O {[%clk 0:00:32]}  Nxd5 {[%clk 0:02:00]} 13. bxc5 {[%clk 0:00:29]}  Qxc5 {[%clk 0:01:58]} 14. Bxd7 {[%clk 0:00:27]}  Nxd7 {[%clk 0:01:59]} 15. Qd3 {[%clk 0:00:17]}  Nc3 {[%clk 0:01:45]} 16. Bd2 {[%clk 0:00:13]}  Ne5 {[%clk 0:01:40]} 17. Nxe5 {[%clk 0:00:13]}  Qxe5 {[%clk 0:01:41]} 18. Rfe1 {[%clk 0:00:14]}  Qf6 {[%clk 0:01:39]} 19. Bxc3 {[%clk 0:00:13]}  dxc3 {[%clk 0:01:40]} 20. Rab1 {[%clk 0:00:13]}  Rfe8 {[%clk 0:01:34]} 21. h3 {[%clk 0:00:08]}  g6 {[%clk 0:01:25]} 22. Rxe8+ {[%clk 0:00:07]}  Rxe8 {[%clk 0:01:26]} 23. Rxb7 {[%clk 0:00:08]}  Re1+ {[%clk 0:01:03]} 24. Kh2 {[%clk 0:00:08]}  Qxf2 {[%clk 0:01:03]} 25. Rb8+ {[%clk 0:00:07]}  Kg7 {[%clk 0:01:03]} 26. Qxc3+ {[%clk 0:00:07]}  Kh6 {[%clk 0:01:03]} 27. Rb3 {[%clk 0:00:05]}  Qg1+ {[%clk 0:00:56]} 28. Kg3 {[%clk 0:00:05]}  Re2 {[%clk 0:00:57]} 29. Qf3 {[%clk 0:00:04]}  Qe1+ {[%clk 0:00:56]} 30. Kh2 {[%clk 0:00:03]}  Qd2 {[%clk 0:00:54]} 31. Qg3 {[%clk 0:00:02]}  Qxc2 {[%clk 0:00:51]} 32. Rb5 {[%clk 0:00:03]}  Kg7 {[%clk 0:00:47]} 33. Qb3 {[%clk 0:00:03]}  Rxg2+ {[%clk 0:00:44]} 34. Kh1 {[%clk 0:00:03]}  Rh2+ {[%clk 0:00:45]} 35. Kg1 {[%clk 0:00:04]}  Qf2# {[%clk 0:00:45]} 0-1


[Site "https://www.chess.com"]

[Event "Titled Tuesday Blitz August 15 Late 2023"]
[White "Berezin, Viktor"]
[Black "Arnold, Ken"]
[WhiteFideId "14107872"]
[BlackFideId "2056836"]
[WhiteElo "2503"]
[BlackElo "2413"]
[Result "0-1"]
[Round "9"]
[TimeControl "180+1"]
[Date "2023.08.15"]
[WhiteClock "0:00:22"]
[BlackClock "0:00:10"]
[Board "67"]

1. Nf3 {[%clk 0:02:56]}  c6 {[%clk 0:02:59]} 2. g3 {[%clk 0:02:47]}  Nf6 {[%clk 0:02:58]} 3. Bg2 {[%clk 0:02:48]}  g6 {[%clk 0:02:58]} 4. O-O {[%clk 0:02:40]}  Bg7 {[%clk 0:02:58]} 5. d3 {[%clk 0:02:37]}  d5 {[%clk 0:02:57]} 6. Nbd2 {[%clk 0:02:35]}  O-O {[%clk 0:02:54]} 7. e4 {[%clk 0:02:31]}  dxe4 {[%clk 0:02:53]} 8. dxe4 {[%clk 0:02:32]}  Bg4 {[%clk 0:02:52]} 9. h3 {[%clk 0:02:30]}  Bxf3 {[%clk 0:02:51]} 10. Qxf3 {[%clk 0:02:29]}  Nbd7 {[%clk 0:02:49]} 11. Re1 {[%clk 0:02:26]}  Qc7 {[%clk 0:02:43]} 12. Qe2 {[%clk 0:02:23]}  e5 {[%clk 0:02:39]} 13. Nc4 {[%clk 0:02:16]}  b5 {[%clk 0:02:36]} 14. Ne3 {[%clk 0:02:15]}  Nc5 {[%clk 0:02:31]} 15. Ng4 {[%clk 0:02:07]}  Rfe8 {[%clk 0:02:18]} 16. Bg5 {[%clk 0:02:04]}  Nxg4 {[%clk 0:02:15]} 17. Qxg4 {[%clk 0:02:01]}  Ne6 {[%clk 0:02:09]} 18. Be3 {[%clk 0:01:59]}  a5 {[%clk 0:02:04]} 19. c3 {[%clk 0:01:54]}  a4 {[%clk 0:02:03]} 20. a3 {[%clk 0:01:53]}  Rad8 {[%clk 0:02:02]} 21. Rad1 {[%clk 0:01:52]}  h5 {[%clk 0:01:58]} 22. Qe2 {[%clk 0:01:49]}  Bf8 {[%clk 0:01:50]} 23. Rxd8 {[%clk 0:01:42]}  Rxd8 {[%clk 0:01:48]} 24. Rd1 {[%clk 0:01:43]}  Bc5 {[%clk 0:01:45]} 25. Bc1 {[%clk 0:01:38]}  Rd6 {[%clk 0:01:42]} 26. Bf3 {[%clk 0:01:33]}  Qd8 {[%clk 0:01:39]} 27. Rxd6 {[%clk 0:01:33]}  Qxd6 {[%clk 0:01:38]} 28. Kg2 {[%clk 0:01:32]}  Qd7 {[%clk 0:01:17]} 29. Be3 {[%clk 0:01:26]}  Qa7 {[%clk 0:01:10]} 30. Bh6 {[%clk 0:01:18]}  Bf8 {[%clk 0:01:04]} 31. Be3 {[%clk 0:01:17]}  Qd7 {[%clk 0:01:02]} 32. Qc2 {[%clk 0:01:11]}  Kh7 {[%clk 0:00:56]} 33. Be2 {[%clk 0:01:11]}  Bh6 {[%clk 0:00:55]} 34. Qc1 {[%clk 0:01:10]}  Bxe3 {[%clk 0:00:54]} 35. Qxe3 {[%clk 0:01:11]}  Kg7 {[%clk 0:00:51]} 36. f4 {[%clk 0:01:09]}  Qd6 {[%clk 0:00:36]} 37. f5 {[%clk 0:01:06]}  Nc5 {[%clk 0:00:31]} 38. g4 {[%clk 0:01:00]}  hxg4 {[%clk 0:00:31]} 39. hxg4 {[%clk 0:01:01]}  f6 {[%clk 0:00:20]} 40. fxg6 {[%clk 0:00:54]}  Kxg6 {[%clk 0:00:19]} 41. Kg3 {[%clk 0:00:45]}  Ne6 {[%clk 0:00:19]} 42. c4 {[%clk 0:00:41]}  Qd4 {[%clk 0:00:17]} 43. Kf2 {[%clk 0:00:32]}  Qxe3+ {[%clk 0:00:12]} 44. Kxe3 {[%clk 0:00:32]}  Nd4 {[%clk 0:00:12]} 45. Bd1 {[%clk 0:00:31]}  Kg5 {[%clk 0:00:12]} 46. cxb5 {[%clk 0:00:30]}  cxb5 {[%clk 0:00:11]} 47. Kd3 {[%clk 0:00:29]}  Kf4 {[%clk 0:00:11]} 48. Kc3 {[%clk 0:00:27]}  Kxe4 {[%clk 0:00:11]} 49. Kb4 {[%clk 0:00:27]}  Kd3 {[%clk 0:00:11]} 50. Kc5 {[%clk 0:00:22]}  e4 {[%clk 0:00:10]} 0-1


[Site "https://www.chess.com"]

[Event "Titled Tuesday Blitz August 15 Late 2023"]
[White "Avila Rodriguez, Joshua Ad"]
[Black "sebastianmarinp"]
[WhiteFideId "5126444"]
[WhiteElo "2498"]
[BlackElo "2406"]
[Result "0-1"]
[Round "9"]
[TimeControl "180+1"]
[Date "2023.08.15"]
[WhiteClock "0:00:08"]
[BlackClock "0:00:08"]
[Board "68"]

1. e4 {[%clk 0:02:59]}  c5 {[%clk 0:02:59]} 2. Nf3 {[%clk 0:02:59]}  d6 {[%clk 0:03:00]} 3. d4 {[%clk 0:02:59]}  cxd4 {[%clk 0:03:01]} 4. Nxd4 {[%clk 0:03:00]}  Nf6 {[%clk 0:03:01]} 5. Nc3 {[%clk 0:03:00]}  g6 {[%clk 0:03:01]} 6. Be3 {[%clk 0:02:58]}  Bg7 {[%clk 0:03:01]} 7. f3 {[%clk 0:02:59]}  O-O {[%clk 0:03:02]} 8. Qd2 {[%clk 0:02:59]}  Nc6 {[%clk 0:03:02]} 9. O-O-O {[%clk 0:03:00]}  d5 {[%clk 0:03:02]} 10. exd5 {[%clk 0:02:59]}  Nxd5 {[%clk 0:03:03]} 11. Nxc6 {[%clk 0:02:59]}  bxc6 {[%clk 0:03:04]} 12. Bd4 {[%clk 0:02:59]}  Nxc3 {[%clk 0:03:02]} 13. Qxc3 {[%clk 0:02:44]}  Bh6+ {[%clk 0:03:02]} 14. Be3 {[%clk 0:02:44]}  Bxe3+ {[%clk 0:03:02]} 15. Qxe3 {[%clk 0:02:44]}  Qb6 {[%clk 0:03:03]} 16. Qc3 {[%clk 0:02:40]}  Be6 {[%clk 0:02:58]} 17. a3 {[%clk 0:02:36]}  Rfd8 {[%clk 0:02:45]} 18. Re1 {[%clk 0:02:35]}  Rab8 {[%clk 0:02:13]} 19. h4 {[%clk 0:02:31]}  Rd5 {[%clk 0:02:02]} 20. Bd3 {[%clk 0:01:15]}  a5 {[%clk 0:01:41]} 21. b3 {[%clk 0:01:07]}  a4 {[%clk 0:01:37]} 22. b4 {[%clk 0:01:05]}  c5 {[%clk 0:01:36]} 23. h5 {[%clk 0:00:47]}  cxb4 {[%clk 0:01:34]} 24. axb4 {[%clk 0:00:46]}  Qxb4 {[%clk 0:01:23]} 25. Qxb4 {[%clk 0:00:46]}  Rxb4 {[%clk 0:01:24]} 26. hxg6 {[%clk 0:00:46]}  hxg6 {[%clk 0:01:23]} 27. Bxg6 {[%clk 0:00:46]}  a3 {[%clk 0:01:12]} 28. Bh7+ {[%clk 0:00:38]}  Kg7 {[%clk 0:01:11]} 29. Bd3 {[%clk 0:00:37]}  Bf5 {[%clk 0:00:49]} 30. Kd2 {[%clk 0:00:30]}  Bxd3 {[%clk 0:00:47]} 31. cxd3 {[%clk 0:00:31]}  Rb2+ {[%clk 0:00:44]} 32. Kc3 {[%clk 0:00:31]}  Rc5+ {[%clk 0:00:44]} 33. Kd4 {[%clk 0:00:29]}  Ra5 {[%clk 0:00:39]} 34. Re4 {[%clk 0:00:24]}  Rxg2 {[%clk 0:00:32]} 35. Ke3 {[%clk 0:00:17]}  a2 {[%clk 0:00:30]} 36. Ra1 {[%clk 0:00:18]}  Kf6 {[%clk 0:00:20]} 37. Rf4+ {[%clk 0:00:17]}  Ke6 {[%clk 0:00:18]} 38. Rb4 {[%clk 0:00:13]}  Kd6 {[%clk 0:00:12]} 39. Rb6+ {[%clk 0:00:12]}  Kc5 {[%clk 0:00:11]} 40. Rb7 {[%clk 0:00:12]}  Kd6 {[%clk 0:00:10]} 41. Rb6+ {[%clk 0:00:12]}  Kc7 {[%clk 0:00:10]} 42. Rb4 {[%clk 0:00:12]}  Re5+ {[%clk 0:00:09]} 43. Kd4 {[%clk 0:00:11]}  Ree2 {[%clk 0:00:10]} 44. Rc4+ {[%clk 0:00:11]}  Kd6 {[%clk 0:00:10]} 45. Ra4 {[%clk 0:00:09]}  e5+ {[%clk 0:00:09]} 46. Kc3 {[%clk 0:00:08]}  Rb2 {[%clk 0:00:09]} 47. Ra6+ {[%clk 0:00:07]}  Ke7 {[%clk 0:00:09]} 48. Ra7+ {[%clk 0:00:06]}  Kf6 {[%clk 0:00:10]} 49. Ra6+ {[%clk 0:00:04]}  Kf5 {[%clk 0:00:10]} 50. d4 {[%clk 0:00:03]}  Rgc2+ {[%clk 0:00:08]} 51. Kd3 {[%clk 0:00:04]}  Rd2+ {[%clk 0:00:08]} 52. Kc4 {[%clk 0:00:04]}  Rxd4+ {[%clk 0:00:08]} 53. Kc5 {[%clk 0:00:04]}  Rdd2 {[%clk 0:00:08]} 54. Ra7 {[%clk 0:00:04]}  f6 {[%clk 0:00:07]} 55. Ra8 {[%clk 0:00:03]}  Rdc2+ {[%clk 0:00:07]} 56. Kd6 {[%clk 0:00:03]}  Rb6+ {[%clk 0:00:06]} 57. Ke7 {[%clk 0:00:03]}  Rc7+ {[%clk 0:00:05]} 58. Kf8 {[%clk 0:00:03]}  Rb3 {[%clk 0:00:05]} 59. R1xa2 {[%clk 0:00:03]}  Rxf3 {[%clk 0:00:05]} 60. R2a6 {[%clk 0:00:04]}  Ke4 {[%clk 0:00:03]} 61. Rb8 {[%clk 0:00:03]}  Kf5 {[%clk 0:00:02]} 62. Rbb6 {[%clk 0:00:03]}  Rh3 {[%clk 0:00:03]} 63. Rxf6+ {[%clk 0:00:03]}  Ke4 {[%clk 0:00:03]} 64. Kg8 {[%clk 0:00:02]}  Rg3+ {[%clk 0:00:03]} 65. Kh8 {[%clk 0:00:02]}  Rh3+ {[%clk 0:00:04]} 66. Kg8 {[%clk 0:00:03]}  Rhh7 {[%clk 0:00:04]} 67. Rg6 {[%clk 0:00:02]}  Rhd7 {[%clk 0:00:04]} 68. Kh8 {[%clk 0:00:02]}  Rc8+ {[%clk 0:00:04]} 69. Rg8 {[%clk 0:00:03]}  Rxg8+ {[%clk 0:00:04]} 70. Kxg8 {[%clk 0:00:03]}  Ke3 {[%clk 0:00:04]} 71. Kf8 {[%clk 0:00:03]}  e4 {[%clk 0:00:04]} 72. Ke8 {[%clk 0:00:04]}  Rb7 {[%clk 0:00:04]} 73. Rd6 {[%clk 0:00:02]}  Kf3 {[%clk 0:00:04]} 74. Rf6+ {[%clk 0:00:02]}  Ke2 {[%clk 0:00:04]} 75. Ra6 {[%clk 0:00:03]}  e3 {[%clk 0:00:04]} 76. Ra2+ {[%clk 0:00:03]}  Kf1 {[%clk 0:00:03]} 77. Ra1+ {[%clk 0:00:03]}  Kf2 {[%clk 0:00:04]} 78. Ra6 {[%clk 0:00:03]}  e2 {[%clk 0:00:04]} 79. Rf6+ {[%clk 0:00:04]}  Ke1 {[%clk 0:00:04]} 80. Rf5 {[%clk 0:00:02]}  Rb3 {[%clk 0:00:05]} 81. Ke7 {[%clk 0:00:02]}  Kd2 {[%clk 0:00:05]} 82. Rd5+ {[%clk 0:00:02]}  Rd3 {[%clk 0:00:05]} 83. Re5 {[%clk 0:00:01]}  e1=Q {[%clk 0:00:05]} 84. Rxe1 {[%clk 0:00:02]}  Kxe1 {[%clk 0:00:06]} 85. Kf6 {[%clk 0:00:02]}  Ke2 {[%clk 0:00:06]} 86. Ke5 {[%clk 0:00:03]}  Ke3 {[%clk 0:00:07]} 87. Kf5 {[%clk 0:00:04]}  Rd5+ {[%clk 0:00:07]} 88. Ke6 {[%clk 0:00:04]}  Ke4 {[%clk 0:00:06]} 89. Kf6 {[%clk 0:00:04]}  Rd6+ {[%clk 0:00:07]} 90. Ke7 {[%clk 0:00:05]}  Ke5 {[%clk 0:00:07]} 91. Kf7 {[%clk 0:00:06]}  Rd7+ {[%clk 0:00:07]} 92. Ke8 {[%clk 0:00:06]}  Ke6 {[%clk 0:00:06]} 93. Kf8 {[%clk 0:00:07]}  Rb7 {[%clk 0:00:06]} 94. Kg8 {[%clk 0:00:07]}  Kf6 {[%clk 0:00:07]} 95. Kh8 {[%clk 0:00:08]}  Kg6 {[%clk 0:00:07]} 96. Kg8 {[%clk 0:00:08]}  Rb8# {[%clk 0:00:08]} 0-1


[Site "https://www.chess.com"]

[Event "Titled Tuesday Blitz August 15 Late 2023"]
[White "Pinheiro, Iung Alicio de O."]
[Black "Tomb, Maroun"]
[WhiteFideId "2104350"]
[BlackFideId "5300398"]
[WhiteElo "2581"]
[BlackElo "2488"]
[Result "1-0"]
[Round "9"]
[TimeControl "180+1"]
[Date "2023.08.15"]
[WhiteClock "0:00:03"]
[BlackClock "0:00:00"]
[Board "71"]

1. e4 {[%clk 0:03:00]}  c5 {[%clk 0:02:35]} 2. Nf3 {[%clk 0:02:59]}  Nc6 {[%clk 0:02:36]} 3. b4 {[%clk 0:02:58]}  cxb4 {[%clk 0:02:35]} 4. d4 {[%clk 0:02:56]}  d5 {[%clk 0:02:34]} 5. exd5 {[%clk 0:02:57]}  Qxd5 {[%clk 0:02:34]} 6. c4 {[%clk 0:02:57]}  bxc3 {[%clk 0:02:34]} 7. Nxc3 {[%clk 0:02:58]}  Qa5 {[%clk 0:02:34]} 8. Rb1 {[%clk 0:02:58]}  e6 {[%clk 0:02:30]} 9. Bd2 {[%clk 0:02:26]}  Nf6 {[%clk 0:02:29]} 10. Bb5 {[%clk 0:02:23]}  Bd7 {[%clk 0:02:10]} 11. d5 {[%clk 0:02:05]}  exd5 {[%clk 0:02:02]} 12. Nxd5 {[%clk 0:02:04]}  Qd8 {[%clk 0:02:01]} 13. Nxf6+ {[%clk 0:02:02]}  Qxf6 {[%clk 0:01:56]} 14. O-O {[%clk 0:02:02]}  Bd6 {[%clk 0:01:19]} 15. Bg5 {[%clk 0:01:52]}  Qg6 {[%clk 0:01:13]} 16. Re1+ {[%clk 0:01:50]}  Kf8 {[%clk 0:01:10]} 17. Bd3 {[%clk 0:01:42]}  f5 {[%clk 0:00:53]} 18. Rxb7 {[%clk 0:01:39]}  Be8 {[%clk 0:00:48]} 19. Bxf5 {[%clk 0:01:23]}  Qxf5 {[%clk 0:00:39]} 20. Qxd6+ {[%clk 0:01:23]}  Kg8 {[%clk 0:00:40]} 21. h3 {[%clk 0:00:33]}  h6 {[%clk 0:00:37]} 22. Rxe8+ {[%clk 0:00:28]}  Rxe8 {[%clk 0:00:33]} 23. Qxc6 {[%clk 0:00:29]}  Kh7 {[%clk 0:00:33]} 24. Be3 {[%clk 0:00:29]}  Re6 {[%clk 0:00:30]} 25. Qb5 {[%clk 0:00:28]}  Qe4 {[%clk 0:00:19]} 26. Qb1 {[%clk 0:00:21]}  Qxb1+ {[%clk 0:00:18]} 27. Rxb1 {[%clk 0:00:22]}  Ra6 {[%clk 0:00:18]} 28. Rb2 {[%clk 0:00:20]}  Rc8 {[%clk 0:00:17]} 29. Nd4 {[%clk 0:00:19]}  Rc4 {[%clk 0:00:17]} 30. Nc2 {[%clk 0:00:15]}  Rca4 {[%clk 0:00:16]} 31. a3 {[%clk 0:00:16]}  Rc6 {[%clk 0:00:16]} 32. Nd4 {[%clk 0:00:13]}  Rc3 {[%clk 0:00:16]} 33. Nb5 {[%clk 0:00:13]}  Rd3 {[%clk 0:00:13]} 34. Bxa7 {[%clk 0:00:13]}  Rd5 {[%clk 0:00:10]} 35. Be3 {[%clk 0:00:12]}  Ra5 {[%clk 0:00:10]} 36. Nc3 {[%clk 0:00:12]}  Rd3 {[%clk 0:00:10]} 37. Nb5 {[%clk 0:00:10]}  Rd5 {[%clk 0:00:10]} 38. a4 {[%clk 0:00:08]}  Rd1+ {[%clk 0:00:09]} 39. Kh2 {[%clk 0:00:08]}  Ra1 {[%clk 0:00:09]} 40. Nc3 {[%clk 0:00:07]}  Ra3 {[%clk 0:00:09]} 41. Bd4 {[%clk 0:00:07]}  Ra6 {[%clk 0:00:08]} 42. Rb7 {[%clk 0:00:07]}  Rg6 {[%clk 0:00:07]} 43. h4 {[%clk 0:00:07]}  h5 {[%clk 0:00:08]} 44. Kh3 {[%clk 0:00:05]}  Rg4 {[%clk 0:00:07]} 45. Be5 {[%clk 0:00:04]}  Kh6 {[%clk 0:00:06]} 46. f3 {[%clk 0:00:04]}  Rg6 {[%clk 0:00:04]} 47. Ne4 {[%clk 0:00:04]}  Rxa4 {[%clk 0:00:03]} 48. Rb8 {[%clk 0:00:04]}  Re6 {[%clk 0:00:04]} 49. Rh8+ {[%clk 0:00:02]}  Kg6 {[%clk 0:00:03]} 50. Bf4 {[%clk 0:00:03]}  Kf7 {[%clk 0:00:03]} 51. Kg3 {[%clk 0:00:03]}  Rb6 {[%clk 0:00:02]} 52. Ng5+ {[%clk 0:00:04]}  Kg6 {[%clk 0:00:00]} 53. Re8 {[%clk 0:00:03]} 1-0


[Site "https://www.chess.com"]

[Event "Titled Tuesday Blitz August 15 Late 2023"]
[White "Martin Barcelo, Carles"]
[Black "Bochnicka, Vladimir"]
[WhiteFideId "24561444"]
[BlackFideId "14943450"]
[WhiteElo "2513"]
[BlackElo "2460"]
[Result "0-1"]
[Round "9"]
[TimeControl "180+1"]
[Date "2023.08.15"]
[WhiteClock "0:00:00"]
[BlackClock "0:00:17"]
[Board "73"]

1. e4 {[%clk 0:03:00]}  c5 {[%clk 0:02:58]} 2. Nc3 {[%clk 0:03:00]}  Nc6 {[%clk 0:02:58]} 3. Bb5 {[%clk 0:02:58]}  Nd4 {[%clk 0:02:58]} 4. Nf3 {[%clk 0:02:56]}  Nxb5 {[%clk 0:02:54]} 5. Nxb5 {[%clk 0:02:57]}  a6 {[%clk 0:02:54]} 6. Nc3 {[%clk 0:02:56]}  g6 {[%clk 0:02:54]} 7. d4 {[%clk 0:02:50]}  cxd4 {[%clk 0:02:53]} 8. Qxd4 {[%clk 0:02:51]}  Nf6 {[%clk 0:02:36]} 9. e5 {[%clk 0:02:51]}  Nh5 {[%clk 0:02:37]} 10. Bg5 {[%clk 0:02:28]}  h6 {[%clk 0:02:23]} 11. Be3 {[%clk 0:02:27]}  Ng7 {[%clk 0:02:20]} 12. g4 {[%clk 0:02:25]}  Ne6 {[%clk 0:02:20]} 13. Qd2 {[%clk 0:02:23]}  Bg7 {[%clk 0:02:19]} 14. O-O-O {[%clk 0:02:22]}  b5 {[%clk 0:02:14]} 15. h4 {[%clk 0:02:20]}  Bb7 {[%clk 0:02:14]} 16. Nd5 {[%clk 0:02:18]}  Kf8 {[%clk 0:01:51]} 17. Kb1 {[%clk 0:02:01]}  d6 {[%clk 0:01:44]} 18. Bb6 {[%clk 0:00:56]}  Qd7 {[%clk 0:01:38]} 19. Rhe1 {[%clk 0:00:47]}  Rc8 {[%clk 0:01:35]} 20. a3 {[%clk 0:00:33]}  h5 {[%clk 0:01:21]} 21. g5 {[%clk 0:00:28]}  Kg8 {[%clk 0:01:07]} 22. exd6 {[%clk 0:00:22]}  Qxd6 {[%clk 0:01:06]} 23. Ba5 {[%clk 0:00:16]}  Rc5 {[%clk 0:00:33]} 24. Bb4 {[%clk 0:00:06]}  Qxd5 {[%clk 0:00:30]} 25. Bxc5 {[%clk 0:00:05]}  Qxd2 {[%clk 0:00:27]} 26. Nxd2 {[%clk 0:00:04]}  Nxc5 {[%clk 0:00:27]} 27. Nb3 {[%clk 0:00:03]}  Nxb3 {[%clk 0:00:26]} 28. cxb3 {[%clk 0:00:04]}  e6 {[%clk 0:00:26]} 29. Rd7 {[%clk 0:00:03]}  Bd5 {[%clk 0:00:24]} 30. Rc1 {[%clk 0:00:04]}  Be5 {[%clk 0:00:20]} 31. Rc5 {[%clk 0:00:01]}  Bxb3 {[%clk 0:00:19]} 32. Rxe5 {[%clk 0:00:02]}  Kg7 {[%clk 0:00:18]} 33. Rc5 {[%clk 0:00:00]}  Bc4 {[%clk 0:00:17]} 0-1


[Site "https://www.chess.com"]